Cogmind - Beta 13 --- EXPLORER MODE // 2024.03.26 @ 23:05:59 Player: fullstopslash Result: Destroyed by G-47 Trooper with Particle Gun Performance ------------- Evolutions (0) 0 Regions Visited (1) 200 Robots Destroyed (6) 30 Value Destroyed (199) 199 Prototype IDs (0) 0 Alien Tech Used (0) 0 Bonus (0) 0 TOTAL SCORE: 429 Bonus ------- None Cogmind --------- Core Integrity 0/250 Matter 290/300 Energy 100/100 System Corruption 0% Temperature Cool (9) Movement Core (250) Ox4 Location -10/Materials Parts ------- > --- POWER (2) -------- (None) > --- PROPULSION (2) --- (None) > --- UTILITY (2) ------ Medium Storage Unit Targeting Computer > --- WEAPON (2) ------- Beam Cannon > --- INVENTORY (10) --- Improved Heat Sink Targeting Computer Power Shielding Light Armor Plating Peak State ------------ > --- POWER ------------ Ion Engine Light Nuclear Core > --- PROPULSION ------- Light Treads Light Treads > --- UTILITY ---------- Medium Storage Unit Targeting Computer > --- WEAPON ----------- Small Laser Light Assault Rifle > --- INVENTORY -------- Ion Engine Targeting Computer Power Shielding Light Armor Plating Assault Rifle [Rating: 10] Favorites ----------- Power Ion Engine Engine Ion Engine Power Core Light Nuclear Core Propulsion Light Treads Treads Light Treads Utility Medium Storage Unit Storage Medium Storage Unit Processor Targeting Computer Weapon Light Assault Rifle Energy Gun Small Laser Energy Cannon Beam Cannon Ballistic Gun Light Assault Rifle Build | -11 -10 ------- Run | Yrd Mat Slots Evolved 1 | . 1 Power 1 | . 1 Propulsion . | . . Utility . | . . Weapon . | . . Parts Attached 10 | 8 2 Power 3 | 2 1 Engine 2 | 2 . Core 1 | . 1 Reactor . | . . Propulsion 2 | 2 . Treads 2 | 2 . Leg . | . . Wheel . | . . Hover . | . . Flight . | . . Utility 2 | 2 . Device . | . . Storage 1 | 1 . Processor 1 | 1 . Hackware . | . . Protection . | . . Artifact . | . . Weapon 3 | 2 1 Energy Gun 1 | 1 . Energy Cannon 1 | . 1 Ballistic Gun 1 | 1 . Ballistic Cannon . | . . Launcher . | . . Special Weapon . | . . Impact Weapon . | . . Slashing Weapon . | . . Piercing Weapon . | . . Special Melee Weapon . | . . Unidentified Prototypes . | . . Parts Lost 6 | . 6 Power 2 | . 2 Propulsion 2 | . 2 Utility . | . . Weapon 2 | . 2 Highest Loss Streak 5 | . 5 To Critical Strikes . | . . Average Slot Usage (%) 90 | . 90 Engine 11 | . 11 Core 7 | . 7 Treads 23 | . 23 Storage 12 | . 12 Processor 12 | . 12 Energy Gun 11 | . 11 Ballistic Gun 10 | . 10 Naked Turns . | . . Heaviest Build 22 | 17 22 Greatest Support 40 | 40 40 Greatest Overweight (x) 1 | 1 . Average Overweight (x) . | . . Largest Inventory Capacity 10 | 10 10 Average Capacity 9 | 9 10 Most Carried 6 | 6 6 Average Carried 3 | 2 5 Final Capacity 10 | 10 10 Final Carried 5 | 5 4 Class Distribution -------------------- 100% | Hacker-Mutant Dominant Class ---------------- Hacker-Mutant | -10/Materials Resources | -11 -10 ----------- Run | Yrd Mat Matter Collected 297 | 173 124 Remotely . | . . Salvage Created 235 | . 235 Parts 14 | . 14 Haulers Intercepted . | . . Recyclers Shooed . | . . Parts Field Recycled . | . . Retrieved Matter . | . . Parts Self-Destructed . | . . Prevented . | . . Kills | -11 -10 ------- Run | Yrd Mat Combat Hostiles Destroyed 5 | . 5 Guns 5 | . 5 Classes Destroyed 2 | . 2 Watcher 1 | . 1 Grunt 5 | . 5 Best Kill Streak 2 | . 2 Combat Bots Only 2 | . 2 Max Kills in Single Turn 1 | . 1 Gunslinging . | . . Exploded . | . . Melee . | . . Uniques/NPCs Destroyed . | . . Combat | -11 -10 -------- Run | Yrd Mat Hostile Shots Fired 134 | . 134 Missed 35 | . 35 Damage Taken 848 | . 848 Core 256 | . 256 Absorbed by Shields . | . . Ignored by Resistances 522 | . 522 Core Remaining (%) 100 | 100 . Volleys Fired 27 | 1 26 Largest 2 | 1 2 Hottest 60 | 20 60 Shots Fired 50 | 1 49 Gun 50 | 1 49 Cannon . | . . Launcher . | . . Special . | . . Kinetic 24 | 1 23 Thermal 26 | . 26 Explosive . | . . Electromagnetic . | . . Robot Hit Streak 36 | . 36 Robot Miss Streak 1 | . 1 Penetration Max . | . . Secondary Targets 1 | . 1 Max Gunslinging Chain 1 | . 1 Shots Hit Robots 41 | . 41 Core Hits 23 | . 23 Critical Kills . | . . Critical Parts Destroyed . | . . Critical Strikes . | . . Melee Attacks . | . . Impact . | . . Slashing . | . . Piercing . | . . Sneak Attacks . | . . Combat Hostiles . | . . Follow-up Attacks . | . . Damage Inflicted 397 | . 397 Guns 396 | . 396 Cannons . | . . Explosions . | . . Melee . | . . Ramming 1 | . 1 Kinetic 148 | . 148 Thermal 248 | . 248 Explosive . | . . Electromagnetic . | . . Impact . | . . Slashing . | . . Piercing . | . . Highest Corruption . | . . Average Corruption . | . . Corruption Purged . | . . Corruption Blocked . | . . Overload Shots . | . . Overflow Damage . | . . Projectiles . | . . Explosions . | . . Melee . | . . Knockbacks . | . . Impact . | . . Kinetic . | . . Secondary . | . . Self-Inflicted Damage . | . . Shots . | . . Rammed 2 | . 2 Targets Rammed 2 | . 2 Kicked . | . . Crushed . | . . Highest Temperature 82 | . 82 Average Temperature 24 | . 24 Received Heat Transfer 828 | . 828 Siege Activations . | . . Robots Corrupted . | . . Combat Hostiles . | . . Parts Fried . | . . Impact Corruptions . | . . Robots Melted . | . . Combat Hostiles . | . . Parts Melted . | . . Heat Transferred 575 | . 575 Parts Sabotaged . | . . Parts Stolen . | . . Parts Stripped . | . . Power Chain Reactions . | . . Alert | -11 -10 ------- Run | Yrd Mat Peak Influence 97 | . 97 Initial . | . . Average 11 | . 27 Maximum Alert Level . | . . Low Security (%) 100 | 100 100 Level 1 . | . . Level 2 . | . . Level 3 . | . . Level 4 . | . . Level 5 . | . . High Security . | . . Max Security . | . . Squads Dispatched . | . . Investigation . | . . Extermination . | . . Reinforcement . | . . Assault . | . . Garrison . | . . Intercept . | . . Searches Triggered . | . . Construction Impeded . | . . Haulers Reinforced . | . . Active Scanning Responses . | . . Cargo Convoy Interrupts . | . . Stealth | -11 -10 --------- Run | Yrd Mat Distress Signals . | . . Communications Jammed . | . . Distress Signals . | . . Times Spotted 9 | . 9 Peak Tracking Total 3 | . 3 Tactical Retreats . | . . Traps | -11 -10 ------- Run | Yrd Mat Traps Triggered . | . . Indirectly . | . . Trap Hack Attempts . | . . Triggered . | . . Disarmed . | . . Reprogrammed . | . . Reused . | . . Traps Extracted . | . . Installed . | . . Triggered . | . . Machines | -11 -10 ---------- Run | Yrd Mat Machines Disabled . | . . Max in Single Turn . | . . Machines Repaired . | . . Machines Dismantled . | . . Machines Sabotaged . | . . Overloaded Fab Kills . | . . Hacking | -11 -10 --------- Run | Yrd Mat Machines Accessed . | . . Terminals . | . . Fabricators . | . . Repair Stations . | . . Recycling Units . | . . Scanalyzers . | . . Garrison Access . | . . Total Hacks . | . . Successful . | . . Failed . | . . Catastrophic . | . . Database Lockouts . | . . Manual . | . . Terminals . | . . Fabricators . | . . Repair Stations . | . . Recycling Units . | . . Scanalyzers . | . . Garrison Access . | . . Terminal Hacks . | . . Fabricator Hacks . | . . Repair Station Hacks . | . . Recycling Unit Hacks . | . . Scanalyzer . | . . Garrison Access Hacks . | . . Unauthorized Hacks . | . . Terminals . | . . Fabricators . | . . Repair Stations . | . . Recycling Units . | . . Scanalyzers . | . . Garrison Access . | . . Data Cores Recovered . | . . Used . | . . Hacking Detections . | . . Full Trace Events . | . . Feedback Events . | . . Feedback Blocked . | . . Robot Schematics Acquired . | . . Robots Built . | . . Authchips . | . . Time . | . . Total Robot Build Rating . | . . Part Schematics Acquired . | . . Parts Built . | . . Authchips . | . . Time . | . . Total Part Build Rating . | . . Parts Repaired . | . . Time . | . . Parts Recycled . | . . Recycled Matter . | . . Retrieved Matter . | . . Retrieved Components . | . . Parts Scanalyzed . | . . Part Schematics Acquired . | . . Parts Damaged . | . . Bothacking | -11 -10 ------------ Run | Yrd Mat Used RIF Installer . | . . Robots Hacked . | . . Non-combat . | . . Combat . | . . Robot Hacks Applied . | . . Relay Couplers Released . | . . Fabnet Peak Effective % . | . . Robots Rewired . | . . Allies Hacked . | . . Hacks Repelled . | . . Allies | -11 -10 -------- Run | Yrd Mat Total Allies . | . . Largest Group . | . . Highest-Rated Group . | . . Highest-Rated Ally . | . . Total Orders . | . . Ally Attacks . | . . Total Damage . | . . Kills . | . . Allies Corrupted . | . . Allies Melted . | . . Intel | -11 -10 ------- Run | Yrd Mat Robot Analysis Total . | . . Derelict Logs Recovered . | . . Drone Launches . | . . Drone Recoveries . | . . Exploration | -11 -10 ------------- Run | Yrd Mat Turns Passed 1629 | 931 698 Spaces Moved 215 | 72 143 Core 34 | 34 . Treads 181 | 38 143 Legs . | . . Wheels . | . . Hover . | . . Flight . | . . Fastest Speed 50 | 50 160 Average Speed 142 | 108 160 Slowest Speed 160 | 160 160 Overloaded Moves . | . . Propulsion Burnouts . | . . Robots Hopped . | . . Cave-ins Triggered . | . . Exploration Rate (%) 16 | 7 26 Regions Visited 1 Branch Regions . Pre-discovered Areas . | . . Known Exits Taken 1 | 1 . Unknown Exits Taken . | . . Scrap Searched . | . . Spaces Dug . | . . Terrain Destroyed . | . . Melee . | . . Projectile . | . . AOE . | . . Terrain Rammed . | . . Walls Destroyed . | . . Machines Disabled . | . . Actions | -11 -10 --------- Run | Yrd Mat Total 1490 | 923 567 Wait 1222 | 833 389 Move 214 | 71 143 Hop . | . . Pick Up 13 | 10 3 Fast Attach 2 | 2 . Attach 7 | 5 2 Detach . | . . Swap 1 | 1 . Drop 2 | . 2 Fire 27 | 1 26 Melee . | . . Ram . | . . Kick . | . . Crush 2 | . 2 Escape Stasis . | . . Rewire . | . . Trap . | . . Miscellaneous . | . . Route ------- -11/Scrapyard -10/Materials History --------- Turn | Location | Event 151 | -11/Scrapyard | Identified exit to Materials 151 | -11/Scrapyard | Discovered exit to Materials (range 15) 932 | -11/Scrapyard | Entered Materials 932 | -10/Materials | Evolved 1 slot: Power x1 933 | -10/Materials | Build established: Hacker-Mutant 1551 | -10/Materials | Core integrity fell below 50% 1619 | -10/Materials | Core integrity fell below 20% 1630 | -10/Materials | Destroyed by G-47 Trooper with Particle Gun Last Messages --------------- 01484_ U-05 Engineer builds a Door. 01516_ Lgt. Nuclear Core destroyed. 01518_ G-34 Mercenary destroyed. 01518_ Switching to secondary target: G-47 Trooper. 01523_ M-13 Machinist repairs G-47 Trooper. 01534_ R-06 Scavenger collects Sml. Laser. 01536_ Critical hit (Burn: +37). 01538_ R-06 Scavenger collects Heat Sink. 01544_ M-13 Machinist repairs G-47 Trooper. 01552_ Lgt. Treads destroyed. 01558_ Processing Tank disabled. 01566_ Lgt. Assault Rifle destroyed. 01567_ K-01 Serf collects debris. 01586_ Ion Engine destroyed. 01600_ Critical hit (Burn: +37). 01602_ Lgt. Treads destroyed. 01606_ Sml. Laser destroyed. 01606_ M-13 Machinist repairs G-47 Trooper. [Achievement: First Step to Greatness] Map ----- +----------------------------------------------------+ | | | | | | | ?????????????????????????????????????????????????? | | ?????????????????????????????????????????????????? | | ?????????????????????????????????????????????????? | | ?????????????????????????????????????????????????? | | ?????????????????????????????????????????????????? | | ?????????????????????????????????????????????????? | | ?????????????????????????????????????????????????? | | ?????????????????????????????????????????????????? | | ?????????????????????????????????????????????????? | | ?????????????????????????????????????????????????? | | ??????????????????????????? #????????????????????? | | ?????????????????????????? #????????????????????? | | ?????????????????????????? #????????????????????? | | ?????????????????????????? #????????#???????????? | | ?????????????????????????? ???????? ?????????? | | ?????????????????????????? ???????? ??????????? | | ?????????????????????????? ??????? #??????????? | | ???????????######??#######+#####??? #??????????? | | ????######## #?# #?? #??????????? | | ????# # #?# """"" #?? ???????????? | | ????# # #?# """ " #? ????????????? | | ????# """ # #?# """ %! #? #?????????????? | | ????# """ # #?# @ g # #?????????????? | | ????# """[ # ############+### #?????????????? | | ????# *# ## ] # #?????????????? | | ????####+### ##""" [%# #?????????????? | | ?????# # ##""" %/ #?????????????? | | ?????# ###+###""" # #?????????????? | | ?????# %+ # #?????????????? | | ?????# ### ###""" !=# ?????????? | | ?????# #?# #?#""" %# ??????? | | ?????#######?# #?#""" *# ?????? | | ???########### #?# ########### ##+??????? | | ???# !!! # #?########+#?????????? #????????? | | ???# !!! + #????????? #??????????? #???????? | | ???# !!! "T" # #????????? #???????????? #???????? | | ???# # #??????????#??????????????#???????? | | ???########### #?????????????????????????????????? | | ??????# ## #?????????????????????????????????? | | ??????# ## #?????????????????????????????????? | | ??????# #?????????????????????????????????? | | ??????# ####?????????????????????????????????? | | ??????# #????????????????????????????????????? | | ??????### ###????????????????????????????????????? | | ????????# #??????????????????????????????????????? | | ????????# #??????????????????????????????????????? | | ????????# #??????????????????????????????????????? | +----------------------------------------------------+ Best States ------------- Heat Dissipation 25 Energy Generation 19 Energy Capacity 310 Matter Stores 300 Matter Capacity 300 Sight Range 16 Terrain Scan Density 10 Resistance: KI 35 Resistance: TH 35 Resistance: EX 35 Resistance: EM 35 Resistance: I 35 Resistance: S 35 Resistance: P 35 Evasion (%) 50 Targeting Accuracy 5 Recoil Reduction 2 Offensive Hacking 20 Item Schematics ----------------- None Robot Schematics ------------------ None Fabricated ------------ Nothing Alien Tech Used ----------------- None Achievements -------------- First Step to Greatness Challenges ------------ None Game ------ Seed GravitonImprinterRedirector Manual? 0 Play Time 00:10:09 Cumulative 0.1 hours Start 2024.03.26 @ 22:57:58 End 2024.03.26 @ 23:05:59 Sessions 2 Manual Loads 0 Difficulty Explorer Special Mode None Game No. 8 Rogue 0 Adventurer 0 Explorer 8 Win Type - Total 0 Types 0/0/0/0/0/0/0/0/0 Lore% 2 Gallery% 11 Achievement% 12 Wizard Run 0 Options --------- Layout 2 ASCII 0 Keyboard 0 Movement Mouse Keybinds 0 Fullscreen 1 Font 16/SmallcapsGlow Map View 25x24 Zoom Use 76% Tactical HUD 1 Map Filters NONE Filters NONE Steam SD RUN: 3bd21dc5-3a2c-4c6e-a6a5-7ca6697eb9cf